[Event "Live Chess"]
[Site "Chess.com"]
[Date "2023.05.21"]
[Round "-"]
[White "Leonid_Starozhilov"]
[Black "hturner40"]
[Result "1-0"]
[WhiteElo "2623"]
[BlackElo "1769"]
[TimeControl "300"]
[EndTime "6:58:32 PDT"]
[Termination "Leonid_Starozhilov won by resignation"]

1. e4 {[%clk 0:04:58.9]} 1... Nc6 {[%clk 0:04:57.3]} 2. Bb5 {[%clk 0:04:56.4]}
2... e6 {[%clk 0:04:52.8]} 3. Nf3 {[%clk 0:04:52.8]} 3... Nge7 {[%clk
0:04:51.1]} 4. O-O {[%clk 0:04:50.4]} 4... d5 {[%clk 0:04:49.6]} 5. Nc3 {[%clk
0:04:45.1]} 5... a6 {[%clk 0:04:43.6]} 6. Bxc6+ {[%clk 0:04:40.7]} 6... Nxc6
{[%clk 0:04:42.1]} 7. exd5 {[%clk 0:04:40]} 7... exd5 {[%clk 0:04:40.5]} 8. d4
{[%clk 0:04:39.7]} 8... Be7 {[%clk 0:04:34.4]} 9. Re1 {[%clk 0:04:38.5]} 9...
O-O {[%clk 0:04:32.3]} 10. h3 {[%clk 0:04:37.5]} 10... Bf6 {[%clk 0:04:27.5]}
11. Bf4 {[%clk 0:04:36.3]} 11... Bf5 {[%clk 0:04:23]} 12. Ne5 {[%clk 0:04:32]}
12... Bxe5 {[%clk 0:03:34.2]} 13. Bxe5 {[%clk 0:04:14.8]} 13... Nxe5 {[%clk
0:03:31.9]} 14. Rxe5 {[%clk 0:04:13.4]} 14... Be6 {[%clk 0:03:30.7]} 15. Qf3
{[%clk 0:04:12.3]} 15... c6 {[%clk 0:03:27.3]} 16. Qe3 {[%clk 0:04:02.4]} 16...
Re8 {[%clk 0:02:58.6]} 17. Re1 {[%clk 0:03:58.9]} 17... Bd7 {[%clk 0:02:54.8]}
18. a3 {[%clk 0:03:49.7]} 18... Rxe5 {[%clk 0:02:44]} 19. Qxe5 {[%clk
0:03:48.7]} 19... Qe8 {[%clk 0:02:29.2]} 20. Qxe8+ {[%clk 0:03:41]} 20... Rxe8
{[%clk 0:02:27]} 21. Rxe8+ {[%clk 0:03:40]} 21... Bxe8 {[%clk 0:02:25.9]} 22.
Na4 {[%clk 0:03:39.7]} 22... Bd7 {[%clk 0:02:17.8]} 23. Nb6 {[%clk 0:03:32.3]}
23... Bf5 {[%clk 0:02:14]} 24. c3 {[%clk 0:03:28.3]} 24... h5 {[%clk 0:02:00.1]}
25. h4 {[%clk 0:03:25.4]} 25... Kf8 {[%clk 0:01:56.7]} 26. f3 {[%clk 0:03:23.3]}
26... Ke7 {[%clk 0:01:54.7]} 27. Kf2 {[%clk 0:03:22.8]} 27... Kd6 {[%clk
0:01:52]} 28. Na4 {[%clk 0:03:17.7]} 28... Bc2 {[%clk 0:01:32]} 29. Nc5 {[%clk
0:03:12.4]} 29... Kc7 {[%clk 0:01:29.1]} 30. Ke3 {[%clk 0:03:08]} 30... a5
{[%clk 0:01:23.2]} 31. b4 {[%clk 0:03:05.4]} 31... b6 {[%clk 0:01:20.5]} 32. Nd3
{[%clk 0:03:02.9]} 32... Bxd3 {[%clk 0:01:13.6]} 33. Kxd3 {[%clk 0:03:00.4]}
33... axb4 {[%clk 0:01:08.3]} 34. cxb4 {[%clk 0:02:57.5]} 34... b5 {[%clk
0:01:05.2]} 35. g4 {[%clk 0:02:54.6]} 35... g6 {[%clk 0:01:00.6]} 36. gxh5
{[%clk 0:02:50.7]} 36... gxh5 {[%clk 0:00:58.9]} 37. Ke3 {[%clk 0:02:50.6]}
37... f6 {[%clk 0:00:40.6]} 38. Kf4 {[%clk 0:02:48]} 38... Kd7 {[%clk 0:00:38]}
39. Kf5 {[%clk 0:02:47.4]} 39... Ke7 {[%clk 0:00:36.6]} 40. Kg6 {[%clk
0:02:45.8]} 40... Ke6 {[%clk 0:00:18.7]} 41. f4 {[%clk 0:02:44.3]} 41... f5
{[%clk 0:00:13.2]} 42. Kg5 {[%clk 0:02:38.6]} 1-0

[Event "Live Chess"]
[Site "Chess.com"]
[Date "2023.05.21"]
[Round "-"]
[White "DRS44"]
[Black "HonestJoe1"]
[Result "0-1"]
[WhiteElo "1322"]
[BlackElo "2089"]
[TimeControl "300"]
[EndTime "6:58:34 PDT"]
[Termination "HonestJoe1 won on time"]

1. e4 {[%clk 0:04:47.7]} 1... c5 {[%clk 0:04:58.5]} 2. a3 {[%clk 0:04:37]} 2...
g6 {[%clk 0:04:57]} 3. b4 {[%clk 0:04:31.5]} 3... Bg7 {[%clk 0:04:55.9]} 4. c3
{[%clk 0:04:20.4]} 4... cxb4 {[%clk 0:04:53.9]} 5. axb4 {[%clk 0:04:11.5]} 5...
d5 {[%clk 0:04:52.9]} 6. exd5 {[%clk 0:04:01.9]} 6... Qxd5 {[%clk 0:04:51.6]} 7.
Qf3 {[%clk 0:03:46.8]} 7... Nf6 {[%clk 0:04:45.2]} 8. Na3 {[%clk 0:03:27.8]}
8... Nc6 {[%clk 0:04:35.9]} 9. Bc4 {[%clk 0:03:11.2]} 9... Qe5+ {[%clk
0:04:26.2]} 10. Ne2 {[%clk 0:02:57.8]} 10... Bg4 {[%clk 0:04:19.2]} 11. Qe3
{[%clk 0:01:08.7]} 11... O-O {[%clk 0:03:41.9]} 12. O-O {[%clk 0:00:54.7]} 12...
a6 {[%clk 0:03:18.1]} 13. Qxe5 {[%clk 0:00:11.8]} 13... Nxe5 {[%clk 0:03:16.7]}
14. f3 {[%clk 0:00:08.1]} 14... Bf5 {[%clk 0:03:01.3]} 15. g4 {[%clk 0:00:01.8]}
15... Bd3 {[%clk 0:02:57.2]} 0-1

[Event "Live Chess"]
[Site "Chess.com"]
[Date "2023.05.21"]
[Round "-"]
[White "Tiltador"]
[Black "ProfPoisson"]
[Result "0-1"]
[WhiteElo "837"]
[BlackElo "1220"]
[TimeControl "300"]
[EndTime "6:58:45 PDT"]
[Termination "ProfPoisson won on time"]

1. e4 {[%clk 0:04:57.7]} 1... e5 {[%clk 0:04:58.5]} 2. Nf3 {[%clk 0:04:56.1]}
2... Nf6 {[%clk 0:04:55.3]} 3. Nxe5 {[%clk 0:04:54.3]} 3... Nxe4 {[%clk
0:04:53.4]} 4. Nf3 {[%clk 0:04:52.5]} 4... Qe7 {[%clk 0:04:50.1]} 5. Be2 {[%clk
0:04:50.9]} 5... d5 {[%clk 0:04:44.8]} 6. O-O {[%clk 0:04:47.9]} 6... Nc6 {[%clk
0:04:36.9]} 7. d3 {[%clk 0:04:46.8]} 7... Nf6 {[%clk 0:04:33.2]} 8. Nc3 {[%clk
0:04:44.1]} 8... Bd7 {[%clk 0:04:31.4]} 9. a3 {[%clk 0:04:39.5]} 9... O-O-O
{[%clk 0:04:30]} 10. b4 {[%clk 0:04:38.3]} 10... h5 {[%clk 0:04:20.2]} 11. Bg5
{[%clk 0:04:35.4]} 11... g6 {[%clk 0:04:11.8]} 12. Nxd5 {[%clk 0:04:11.8]} 12...
Qd6 {[%clk 0:03:42.2]} 13. Nxf6 {[%clk 0:04:06.9]} 13... Be7 {[%clk 0:03:16.2]}
14. Ne4 {[%clk 0:03:59.7]} 14... Qe6 {[%clk 0:03:04.2]} 15. Bxe7 {[%clk
0:03:42.3]} 15... Nxe7 {[%clk 0:03:01.8]} 16. Nc5 {[%clk 0:03:40.2]} 16... Qd6
{[%clk 0:02:54.7]} 17. Nxd7 {[%clk 0:03:33.6]} 17... Rxd7 {[%clk 0:02:50.8]} 18.
c4 {[%clk 0:03:29.1]} 18... h4 {[%clk 0:02:47.4]} 19. h3 {[%clk 0:03:25.1]}
19... f6 {[%clk 0:02:39]} 20. c5 {[%clk 0:03:23.1]} 20... Qd5 {[%clk 0:02:33.9]}
21. Nd2 {[%clk 0:03:17.2]} 21... g5 {[%clk 0:02:32]} 22. Nc4 {[%clk 0:03:15.6]}
22... f5 {[%clk 0:02:17.4]} 23. Bf3 {[%clk 0:03:05.4]} 23... Qd4 {[%clk
0:02:09.2]} 24. a4 {[%clk 0:02:42.3]} 24... Kb8 {[%clk 0:01:49.8]} 25. Rc1
{[%clk 0:02:25.3]} 25... g4 {[%clk 0:01:47.4]} 26. hxg4 {[%clk 0:01:54.7]} 26...
fxg4 {[%clk 0:01:21.3]} 27. Bxg4 {[%clk 0:01:51.4]} 27... Rd5 {[%clk 0:01:16.2]}
28. Bh3 {[%clk 0:01:31]} 28... Ng6 {[%clk 0:01:03]} 29. Qf3 {[%clk 0:01:22.2]}
29... Nf4 {[%clk 0:00:58.8]} 30. Rcd1 {[%clk 0:01:15.2]} 30... Rg8 {[%clk
0:00:25.5]} 31. a5 {[%clk 0:00:56]} 31... Rdg5 {[%clk 0:00:21.7]} 32. g4 {[%clk
0:00:44]} 32... Nxh3+ {[%clk 0:00:17.6]} 33. Qxh3 {[%clk 0:00:40.4]} 33... Rxg4+
{[%clk 0:00:16.5]} 34. Kh2 {[%clk 0:00:33.9]} 34... Qf4+ {[%clk 0:00:14.7]} 35.
Kh1 {[%clk 0:00:26.3]} 35... Qd4 {[%clk 0:00:07.8]} 36. f3 {[%clk 0:00:13.1]}
36... Rg3 {[%clk 0:00:05.8]} 37. Qh2 {[%clk 0:00:09.4]} 37... Qe3 {[%clk
0:00:02.2]} 38. Rde1 {[%clk 0:00:00.5]} 38... Rg2 {[%clk 0:00:01.3]} 0-1

[Event "Live Chess"]
[Site "Chess.com"]
[Date "2023.05.21"]
[Round "-"]
[White "AttackingSnowLeopard"]
[Black "HadesLearmonth"]
[Result "1-0"]
[WhiteElo "2169"]
[BlackElo "1208"]
[TimeControl "300"]
[EndTime "6:58:51 PDT"]
[Termination "AttackingSnowLeopard won by checkmate"]

1. e4 {[%clk 0:04:57.2]} 1... e5 {[%clk 0:04:58.7]} 2. Nf3 {[%clk 0:04:56]} 2...
Nc6 {[%clk 0:04:57.1]} 3. Bb5 {[%clk 0:04:55.4]} 3... Nf6 {[%clk 0:04:33.7]} 4.
d3 {[%clk 0:04:52.1]} 4... Bc5 {[%clk 0:04:25.5]} 5. c3 {[%clk 0:04:51.4]} 5...
O-O {[%clk 0:04:24.4]} 6. O-O {[%clk 0:04:49.8]} 6... d5 {[%clk 0:04:22.7]} 7.
Nbd2 {[%clk 0:04:46.7]} 7... d4 {[%clk 0:04:19.3]} 8. Nc4 {[%clk 0:04:43.9]}
8... Ng4 {[%clk 0:04:14.1]} 9. h3 {[%clk 0:04:37.3]} 9... Nf6 {[%clk 0:04:08.8]}
10. Bxc6 {[%clk 0:04:35.6]} 10... bxc6 {[%clk 0:04:06.4]} 11. Nfxe5 {[%clk
0:04:33.1]} 11... Bd6 {[%clk 0:04:00.6]} 12. Nxc6 {[%clk 0:04:27.1]} 12... Qd7
{[%clk 0:03:58.5]} 13. Nxd4 {[%clk 0:04:26.6]} 13... c5 {[%clk 0:03:42.4]} 14.
Nf5 {[%clk 0:04:18.4]} 14... Be7 {[%clk 0:03:35.3]} 15. Nxe7+ {[%clk 0:04:11.9]}
15... Qxe7 {[%clk 0:03:33.9]} 16. Bg5 {[%clk 0:04:11.6]} 16... Qe6 {[%clk
0:03:30.2]} 17. f4 {[%clk 0:04:08.3]} 17... Bb7 {[%clk 0:03:20.2]} 18. Qf3
{[%clk 0:04:04.9]} 18... Rad8 {[%clk 0:03:14]} 19. Ne5 {[%clk 0:03:58.8]} 19...
Qb6 {[%clk 0:03:06.2]} 20. Bxf6 {[%clk 0:03:53.5]} 20... Qxf6 {[%clk 0:03:04]}
21. Rad1 {[%clk 0:03:49.3]} 21... Ba6 {[%clk 0:02:58.3]} 22. Rfe1 {[%clk
0:03:32.7]} 22... Rd6 {[%clk 0:02:51.5]} 23. Ng4 {[%clk 0:03:25.1]} 23... Qd8
{[%clk 0:02:44.7]} 24. c4 {[%clk 0:03:20.2]} 24... Qa5 {[%clk 0:02:39.3]} 25. f5
{[%clk 0:03:10.7]} 25... Qxa2 {[%clk 0:02:36.4]} 26. f6 {[%clk 0:03:09.7]} 26...
Qxb2 {[%clk 0:02:27.6]} 27. fxg7 {[%clk 0:03:07.2]} 27... Qxg7 {[%clk
0:02:25.3]} 28. e5 {[%clk 0:03:05]} 28... Rb6 {[%clk 0:02:21.7]} 29. Nf6+ {[%clk
0:03:04]} 29... Kh8 {[%clk 0:02:18.5]} 30. Rd2 {[%clk 0:02:55.7]} 30... Rd8
{[%clk 0:02:05.3]} 31. Nd5 {[%clk 0:02:52.8]} 31... Rh6 {[%clk 0:01:57]} 32. Rf2
{[%clk 0:02:48.4]} 32... Rf8 {[%clk 0:01:54.6]} 33. Nf6 {[%clk 0:02:45.7]} 33...
Bc8 {[%clk 0:01:47.5]} 34. Kf1 {[%clk 0:02:42]} 34... Rd8 {[%clk 0:01:36.6]} 35.
Rb1 {[%clk 0:02:35.1]} 35... Be6 {[%clk 0:01:26.9]} 36. Rb7 {[%clk 0:02:29.9]}
36... a5 {[%clk 0:01:21.9]} 37. Ng4 {[%clk 0:02:16.3]} 37... Bxg4 {[%clk
0:01:15.4]} 38. Qxg4 {[%clk 0:02:13.3]} 38... Rg6 {[%clk 0:01:10.2]} 39. Qf5
{[%clk 0:02:10.2]} 39... h5 {[%clk 0:01:01.9]} 40. Rxf7 {[%clk 0:02:05.7]} 40...
Qh6 {[%clk 0:00:59.5]} 41. Rf8+ {[%clk 0:02:03.3]} 41... Rg8 {[%clk 0:00:53.3]}
42. Rxd8 {[%clk 0:01:59.5]} 42... Rxd8 {[%clk 0:00:50.5]} 43. Qf6+ {[%clk
0:01:56]} 43... Qxf6 {[%clk 0:00:48.3]} 44. exf6 {[%clk 0:01:55.9]} 44... Rxd3
{[%clk 0:00:46.4]} 45. f7 {[%clk 0:01:54.9]} 45... Rd1+ {[%clk 0:00:42.1]} 46.
Ke2 {[%clk 0:01:52.6]} 46... Rd8 {[%clk 0:00:38]} 47. f8=Q+ {[%clk 0:01:51.2]}
47... Rxf8 {[%clk 0:00:37.7]} 48. Rxf8+ {[%clk 0:01:49.6]} 48... Kg7 {[%clk
0:00:37.6]} 49. Ra8 {[%clk 0:01:48.4]} 49... h4 {[%clk 0:00:35.6]} 50. Rxa5
{[%clk 0:01:47.8]} 50... Kf6 {[%clk 0:00:35.2]} 51. Rxc5 {[%clk 0:01:47.3]}
51... Ke6 {[%clk 0:00:34.5]} 52. Rh5 {[%clk 0:01:47.2]} 52... Kd6 {[%clk
0:00:33.5]} 53. Rxh4 {[%clk 0:01:47.1]} 53... Kc5 {[%clk 0:00:33.2]} 54. Rg4
{[%clk 0:01:46.8]} 54... Kb4 {[%clk 0:00:32.6]} 55. h4 {[%clk 0:01:46.6]} 55...
Kb3 {[%clk 0:00:32.2]} 56. h5 {[%clk 0:01:46.5]} 56... Kb2 {[%clk 0:00:31.8]}
57. h6 {[%clk 0:01:46.3]} 57... Kc1 {[%clk 0:00:30.9]} 58. h7 {[%clk 0:01:46.2]}
58... Kb1 {[%clk 0:00:30.5]} 59. h8=Q {[%clk 0:01:46]} 59... Kc1 {[%clk
0:00:28.7]} 60. Qc3+ {[%clk 0:01:44.7]} 60... Kb1 {[%clk 0:00:27.8]} 61. c5
{[%clk 0:01:44.2]} 61... Ka2 {[%clk 0:00:26.9]} 62. Ra4+ {[%clk 0:01:43.7]}
62... Kb1 {[%clk 0:00:25.1]} 63. Ra1# {[%clk 0:01:43.6]} 1-0

[Event "Live Chess"]
[Site "Chess.com"]
[Date "2023.05.21"]
[Round "-"]
[White "seabuck"]
[Black "Delacorta"]
[Result "1-0"]
[WhiteElo "1879"]
[BlackElo "1384"]
[TimeControl "300"]
[EndTime "6:59:19 PDT"]
[Termination "seabuck won by resignation"]

1. Nf3 {[%clk 0:04:56.7]} 1... e6 {[%clk 0:04:58.2]} 2. c4 {[%clk 0:04:55.7]}
2... f5 {[%clk 0:04:57]} 3. Nc3 {[%clk 0:04:54.1]} 3... Nf6 {[%clk 0:04:55.9]}
4. g3 {[%clk 0:04:52.5]} 4... c6 {[%clk 0:04:55]} 5. Bg2 {[%clk 0:04:51.5]} 5...
Be7 {[%clk 0:04:53.4]} 6. d4 {[%clk 0:04:47.9]} 6... d5 {[%clk 0:04:52]} 7. O-O
{[%clk 0:04:41.4]} 7... O-O {[%clk 0:04:50.3]} 8. cxd5 {[%clk 0:04:39.2]} 8...
exd5 {[%clk 0:04:49]} 9. Qc2 {[%clk 0:04:32.3]} 9... Ne4 {[%clk 0:04:41.5]} 10.
Bf4 {[%clk 0:04:22.5]} 10... Nd7 {[%clk 0:04:32.6]} 11. Ne5 {[%clk 0:04:07.2]}
11... Nxe5 {[%clk 0:04:18.9]} 12. Bxe5 {[%clk 0:04:05.1]} 12... Bf6 {[%clk
0:03:56.5]} 13. Bxf6 {[%clk 0:03:40]} 13... Qxf6 {[%clk 0:03:51.5]} 14. e3
{[%clk 0:03:29.7]} 14... Bd7 {[%clk 0:03:28.2]} 15. b4 {[%clk 0:03:24.8]} 15...
a6 {[%clk 0:03:24.7]} 16. a4 {[%clk 0:03:22.5]} 16... Qh6 {[%clk 0:03:06.2]} 17.
f4 {[%clk 0:03:02.3]} 17... Nf6 {[%clk 0:02:55.5]} 18. Bf3 {[%clk 0:02:37.2]}
18... Ne4 {[%clk 0:02:40.2]} 19. Rab1 {[%clk 0:02:19.6]} 19... Be8 {[%clk
0:02:34.1]} 20. b5 {[%clk 0:02:12.7]} 20... axb5 {[%clk 0:02:32.1]} 21. axb5
{[%clk 0:02:11.1]} 21... Nxc3 {[%clk 0:02:05.3]} 22. Qxc3 {[%clk 0:02:07.2]}
22... Ra2 {[%clk 0:02:04.3]} 23. Rb2 {[%clk 0:01:58.6]} 23... Rxb2 {[%clk
0:01:53.7]} 24. Qxb2 {[%clk 0:01:57.3]} 24... cxb5 {[%clk 0:01:51.7]} 25. Bxd5+
{[%clk 0:01:55.1]} 25... Kh8 {[%clk 0:01:43.1]} 26. Bxb7 {[%clk 0:01:52.3]}
26... Bh5 {[%clk 0:01:37.8]} 27. Bg2 {[%clk 0:01:40.7]} 27... Rb8 {[%clk
0:01:34.8]} 28. Qb4 {[%clk 0:01:30.7]} 28... Qa6 {[%clk 0:01:19.9]} 29. Rc1
{[%clk 0:01:22.9]} 29... h6 {[%clk 0:01:02]} 30. Qc5 {[%clk 0:01:06.7]} 30...
Bg6 {[%clk 0:00:27.6]} 31. Qc7 {[%clk 0:00:55.3]} 31... Re8 {[%clk 0:00:19.6]}
32. Qc6 {[%clk 0:00:47.1]} 32... Qa4 {[%clk 0:00:16.7]} 33. Qxg6 {[%clk
0:00:42]} 33... b4 {[%clk 0:00:14.6]} 1-0

[Event "Live Chess"]
[Site "Chess.com"]
[Date "2023.05.21"]
[Round "-"]
[White "jumush"]
[Black "JackCheetham1"]
[Result "1-0"]
[WhiteElo "1724"]
[BlackElo "1706"]
[TimeControl "300"]
[EndTime "6:59:26 PDT"]
[Termination "jumush won by checkmate"]

1. e4 {[%clk 0:04:54]} 1... c5 {[%clk 0:04:51.3]} 2. Nc3 {[%clk 0:04:52.3]} 2...
e6 {[%clk 0:04:49.6]} 3. Nf3 {[%clk 0:04:47.1]} 3... d5 {[%clk 0:04:48.2]} 4. e5
{[%clk 0:04:43.5]} 4... Ne7 {[%clk 0:04:35.6]} 5. Bb5+ {[%clk 0:04:40.8]} 5...
Bd7 {[%clk 0:04:32.9]} 6. Bxd7+ {[%clk 0:04:38.4]} 6... Nxd7 {[%clk 0:04:32.1]}
7. O-O {[%clk 0:04:36.9]} 7... Ng6 {[%clk 0:04:30.6]} 8. Re1 {[%clk 0:04:35.3]}
8... Be7 {[%clk 0:04:25.5]} 9. d4 {[%clk 0:04:33.3]} 9... a6 {[%clk 0:04:21.4]}
10. Ne2 {[%clk 0:04:30.7]} 10... O-O {[%clk 0:04:16.9]} 11. c3 {[%clk
0:04:28.7]} 11... h6 {[%clk 0:04:08.5]} 12. Nf4 {[%clk 0:04:25.7]} 12... b5
{[%clk 0:04:00.8]} 13. Nxg6 {[%clk 0:04:23.3]} 13... fxg6 {[%clk 0:04:00.7]} 14.
Be3 {[%clk 0:04:20.2]} 14... g5 {[%clk 0:03:53.8]} 15. dxc5 {[%clk 0:04:18.4]}
15... Bxc5 {[%clk 0:03:49.4]} 16. Bxc5 {[%clk 0:04:10.2]} 16... Nxc5 {[%clk
0:03:47.6]} 17. Qd4 {[%clk 0:04:06]} 17... Ne4 {[%clk 0:03:35.2]} 18. Rad1
{[%clk 0:04:02]} 18... Qe8 {[%clk 0:03:06.6]} 19. Re2 {[%clk 0:03:58.3]} 19...
Rf4 {[%clk 0:03:04.4]} 20. Qe3 {[%clk 0:03:44.9]} 20... Qg6 {[%clk 0:02:45.5]}
21. Nd2 {[%clk 0:03:39.4]} 21... Nxd2 {[%clk 0:02:36.9]} 22. Rexd2 {[%clk
0:03:35.4]} 22... Re4 {[%clk 0:02:24.1]} 23. Qd3 {[%clk 0:03:33.3]} 23... Qf5
{[%clk 0:02:15.7]} 24. Re2 {[%clk 0:03:30.9]} 24... Rf8 {[%clk 0:02:11.1]} 25.
f3 {[%clk 0:03:12.8]} 25... Rxe2 {[%clk 0:01:52.1]} 26. Qxe2 {[%clk 0:03:11.2]}
26... Rc8 {[%clk 0:01:24.3]} 27. a3 {[%clk 0:03:05.2]} 27... Rc4 {[%clk
0:01:18.7]} 28. Rd4 {[%clk 0:03:03]} 28... Qb1+ {[%clk 0:01:16.3]} 29. Kf2
{[%clk 0:03:00.7]} 29... Kh8 {[%clk 0:01:05.2]} 30. Rxc4 {[%clk 0:02:08.8]}
30... bxc4 {[%clk 0:00:59.3]} 31. Qd2 {[%clk 0:02:03.7]} 31... Qf5 {[%clk
0:00:55.5]} 32. Qe2 {[%clk 0:02:01.1]} 32... g4 {[%clk 0:00:52]} 33. Kg3 {[%clk
0:01:48.1]} 33... h5 {[%clk 0:00:36.8]} 34. f4 {[%clk 0:01:43.4]} 34... g5
{[%clk 0:00:28.2]} 35. fxg5 {[%clk 0:01:32]} 35... Qxg5 {[%clk 0:00:27.1]} 36.
h4 {[%clk 0:01:24.2]} 36... gxh3+ {[%clk 0:00:25.1]} 37. Kxh3 {[%clk 0:01:20.6]}
37... h4 {[%clk 0:00:22.8]} 38. Qf2 {[%clk 0:00:56.5]} 38... Qxe5 {[%clk
0:00:15.3]} 39. Qxh4+ {[%clk 0:00:54]} 39... Kg7 {[%clk 0:00:14.9]} 40. Qe7+
{[%clk 0:00:50.9]} 40... Kg6 {[%clk 0:00:13.5]} 41. Qe8+ {[%clk 0:00:43.7]}
41... Kf5 {[%clk 0:00:12.8]} 42. Qf7+ {[%clk 0:00:39.5]} 42... Ke4 {[%clk
0:00:12.3]} 43. Qf3# {[%clk 0:00:36.2]} 1-0

[Event "Live Chess"]
[Site "Chess.com"]
[Date "2023.05.21"]
[Round "-"]
[White "ameetghasi100"]
[Black "smoggyrabbit"]
[Result "1-0"]
[WhiteElo "2583"]
[BlackElo "1628"]
[TimeControl "300"]
[EndTime "6:59:33 PDT"]
[Termination "ameetghasi100 won by resignation"]

1. d4 {[%clk 0:04:57.4]} 1... e6 {[%clk 0:04:58.9]} 2. Nc3 {[%clk 0:04:56.8]}
2... Nf6 {[%clk 0:04:52.3]} 3. e4 {[%clk 0:04:56]} 3... d5 {[%clk 0:04:45.2]} 4.
e5 {[%clk 0:04:50.5]} 4... Nfd7 {[%clk 0:04:43.7]} 5. f4 {[%clk 0:04:47.9]} 5...
c5 {[%clk 0:04:42.6]} 6. Nf3 {[%clk 0:04:42.7]} 6... Nc6 {[%clk 0:04:41]} 7. Be3
{[%clk 0:04:38.7]} 7... Be7 {[%clk 0:04:37.1]} 8. Bd3 {[%clk 0:04:36.4]} 8...
O-O {[%clk 0:04:32.8]} 9. h4 {[%clk 0:04:25.9]} 9... b6 {[%clk 0:04:31.4]} 10.
Bxh7+ {[%clk 0:04:23]} 10... Kh8 {[%clk 0:04:19.1]} 11. Ng5 {[%clk 0:04:19.6]}
11... g6 {[%clk 0:02:55.8]} 12. Nxe6 {[%clk 0:04:17.2]} 12... fxe6 {[%clk
0:02:46.7]} 13. Bxg6 {[%clk 0:04:15]} 13... Bxh4+ {[%clk 0:02:24]} 14. g3 {[%clk
0:04:13.4]} 14... Qe7 {[%clk 0:02:15]} 15. Rxh4+ {[%clk 0:04:12.4]} 15... Kg8
{[%clk 0:02:13.7]} 16. Qh5 {[%clk 0:04:03.5]} 1-0

[Event "Live Chess"]
[Site "Chess.com"]
[Date "2023.05.21"]
[Round "-"]
[White "jimwad"]
[Black "TheSmoulderingMaster"]
[Result "0-1"]
[WhiteElo "1219"]
[BlackElo "1664"]
[TimeControl "300"]
[EndTime "6:59:39 PDT"]
[Termination "TheSmoulderingMaster won by resignation"]

1. c4 {[%clk 0:04:58]} 1... e5 {[%clk 0:04:58.8]} 2. g3 {[%clk 0:04:56.8]} 2...
Nf6 {[%clk 0:04:57.5]} 3. Bg2 {[%clk 0:04:55.6]} 3... Nc6 {[%clk 0:04:56.8]} 4.
Nc3 {[%clk 0:04:54.4]} 4... Bb4 {[%clk 0:04:55.3]} 5. e3 {[%clk 0:04:52.9]} 5...
O-O {[%clk 0:04:53.6]} 6. Nge2 {[%clk 0:04:51.6]} 6... d6 {[%clk 0:04:50.6]} 7.
O-O {[%clk 0:04:49.4]} 7... Bg4 {[%clk 0:04:48.5]} 8. Qc2 {[%clk 0:04:42.8]}
8... Qd7 {[%clk 0:04:45]} 9. d4 {[%clk 0:04:38.1]} 9... exd4 {[%clk 0:04:37.5]}
10. Nxd4 {[%clk 0:04:36.6]} 10... Nxd4 {[%clk 0:04:35.7]} 11. exd4 {[%clk
0:04:35]} 11... Bh3 {[%clk 0:04:35]} 12. Bxh3 {[%clk 0:04:31]} 12... Qxh3 {[%clk
0:04:31.8]} 13. Ne2 {[%clk 0:04:15.2]} 13... Ng4 {[%clk 0:04:29]} 0-1

[Event "Live Chess"]
[Site "Chess.com"]
[Date "2023.05.21"]
[Round "-"]
[White "Long1968"]
[Black "shohrehbayat"]
[Result "0-1"]
[WhiteElo "958"]
[BlackElo "2043"]
[TimeControl "300"]
[EndTime "6:59:53 PDT"]
[Termination "shohrehbayat won on time"]

1. e4 {[%clk 0:04:57.7]} 1... e5 {[%clk 0:04:59.2]} 2. f4 {[%clk 0:04:55.4]}
2... d5 {[%clk 0:04:57.2]} 3. exd5 {[%clk 0:04:52.4]} 3... exf4 {[%clk 0:04:56]}
4. Bb5+ {[%clk 0:04:32]} 4... Bd7 {[%clk 0:04:54]} 5. Qe2+ {[%clk 0:04:29]} 5...
Qe7 {[%clk 0:04:50.8]} 6. Nc3 {[%clk 0:04:16.2]} 6... Nf6 {[%clk 0:04:41.6]} 7.
d4 {[%clk 0:03:48.7]} 7... Bxb5 {[%clk 0:04:35.5]} 8. Nxb5 {[%clk 0:03:21.4]}
8... Nxd5 {[%clk 0:04:32.7]} 9. Qxe7+ {[%clk 0:03:00.9]} 9... Bxe7 {[%clk
0:04:30.6]} 10. c4 {[%clk 0:02:54]} 10... Bb4+ {[%clk 0:04:27.8]} 11. Bd2 {[%clk
0:02:46.5]} 11... Bxd2+ {[%clk 0:04:21.4]} 12. Kxd2 {[%clk 0:02:42.3]} 12... a6
{[%clk 0:04:18.7]} 13. Nc3 {[%clk 0:02:08]} 13... Nxc3 {[%clk 0:04:12.9]} 14.
Re1+ {[%clk 0:02:00.3]} 14... Kd7 {[%clk 0:04:08.7]} 15. Kxc3 {[%clk 0:01:57.2]}
15... Nc6 {[%clk 0:04:07.3]} 16. Nf3 {[%clk 0:01:53.9]} 16... Rae8 {[%clk
0:04:05.5]} 17. d5 {[%clk 0:01:42.7]} 17... Rxe1 {[%clk 0:03:59.2]} 18. Rxe1
{[%clk 0:01:37.8]} 18... Ne7 {[%clk 0:03:57.9]} 19. Ng5 {[%clk 0:01:26.9]} 19...
Rf8 {[%clk 0:03:48.7]} 20. Rf1 {[%clk 0:00:46.8]} 20... h6 {[%clk 0:03:42.8]}
21. Ne4 {[%clk 0:00:34]} 21... Ng6 {[%clk 0:03:37.9]} 22. Nc5+ {[%clk
0:00:19.2]} 22... Kd6 {[%clk 0:03:36]} 23. b4 {[%clk 0:00:16.5]} 23... b6 {[%clk
0:03:33.8]} 24. Ne4+ {[%clk 0:00:09.9]} 24... Kd7 {[%clk 0:03:32.4]} 25. Re1
{[%clk 0:00:06.2]} 25... Re8 {[%clk 0:03:28.6]} 0-1

[Event "Live Chess"]
[Site "Chess.com"]
[Date "2023.05.21"]
[Round "-"]
[White "viktorskliarov"]
[Black "Alfiedog12"]
[Result "1-0"]
[WhiteElo "2651"]
[BlackElo "891"]
[TimeControl "300"]
[EndTime "7:00:02 PDT"]
[Termination "viktorskliarov won by resignation"]

1. e4 {[%clk 0:04:57.2]} 1... c6 {[%clk 0:04:57.3]} 2. d4 {[%clk 0:04:55.6]}
2... d5 {[%clk 0:04:53.6]} 3. e5 {[%clk 0:04:55]} 3... Bf5 {[%clk 0:04:51.2]} 4.
Nf3 {[%clk 0:04:54.4]} 4... e6 {[%clk 0:04:46.8]} 5. Be2 {[%clk 0:04:51.1]} 5...
Nd7 {[%clk 0:04:45]} 6. O-O {[%clk 0:04:49.7]} 6... Qb6 {[%clk 0:04:35.2]} 7.
Nbd2 {[%clk 0:04:43.4]} 7... c5 {[%clk 0:04:32.3]} 8. c3 {[%clk 0:04:24.4]} 8...
c4 {[%clk 0:04:29.9]} 9. Nh4 {[%clk 0:04:21.1]} 9... Bg6 {[%clk 0:04:21.5]} 10.
Nxg6 {[%clk 0:04:19]} 10... hxg6 {[%clk 0:04:20.5]} 11. b3 {[%clk 0:04:18.2]}
11... Be7 {[%clk 0:04:13.2]} 12. bxc4 {[%clk 0:04:13]} 12... dxc4 {[%clk
0:04:02.1]} 13. Nxc4 {[%clk 0:04:12]} 13... Qa6 {[%clk 0:03:46.1]} 14. Nd6+
{[%clk 0:04:09.6]} 14... Bxd6 {[%clk 0:03:44]} 15. Bxa6 {[%clk 0:04:07.6]} 15...
bxa6 {[%clk 0:03:43]} 16. exd6 {[%clk 0:04:06.8]} 1-0